Cogmind - Beta 14 @@@ ROGUE MODE // 2024.11.09 @ 06:03:48 Player: Fangrelle Result: Destroyed by D-53 Grenadier with Mini Grenade Launcher Performance ------------- Evolutions (0) 0 Regions Visited (2) 400 Robots Destroyed (35) 175 Value Destroyed (647) 647 Prototype IDs (4) 80 Alien Tech Used (0) 0 Bonus (0) 0 TOTAL SCORE: 1302 Bonus ------- None Cogmind --------- Core Integrity 0/250 Matter 265/300 Energy 60/250 System Corruption 1% Temperature Cool (0) Movement Core (1300) Ox25 Location -10/Mines Parts ------- > --- POWER (1) -------- Ion Engine > --- PROPULSION (2) --- (None) > --- UTILITY (2) ------ Large Storage Unit High-capacity Storage Unit > --- WEAPON (2) ------- EM Pulse Cannon Heavy Particle Cannon > --- INVENTORY (20) --- Ion Engine Light Treads Carbon-fiber Leg Carbon-fiber Leg High-capacity Storage Unit Medium Matter Pod (84) Compact Matter Pod (0) Structural Scanner Terrain Scanner Targeting Computer Improved Trap Extractor (0/6) EM Pulse Gun Grenade Launcher Grenade Launcher Mining Claw Mining Claw Peak State ------------ > --- POWER ------------ Ion Engine > --- PROPULSION ------- Light Treads Light Treads > --- UTILITY ---------- Large Storage Unit High-capacity Storage Unit > --- WEAPON ----------- EM Pulse Gun EM Pulse Cannon > --- INVENTORY -------- Ion Engine Ion Engine Light Treads High-capacity Storage Unit Medium Matter Pod Compact Matter Pod Structural Scanner Terrain Scanner Targeting Computer Improved Trap Extractor Heavy Particle Cannon Grenade Launcher Grenade Launcher Grenade Launcher Mining Claw Mining Claw [Rating: 11] Favorites ----------- Power Ion Engine Engine Ion Engine Propulsion Light Treads Treads Light Treads Wheel Compact Wheel Utility Large Storage Unit Storage Large Storage Unit Weapon EM Pulse Gun Energy Gun EM Pulse Gun Energy Cannon EM Pulse Cannon Ballistic Gun Assault Rifle Launcher Grenade Launcher Slashing Weapon Mining Claw Build | -11 -10 -10 ------- Run | Yrd Mat Min Slots Evolved . | . . . Power . | . . . Propulsion . | . . . Utility . | . . . Weapon . | . . . Parts Attached 33 | 6 21 6 Power 5 | 1 3 1 Engine 5 | 1 3 1 Core . | . . . Reactor . | . . . Propulsion 10 | 2 8 . Treads 8 | 2 6 . Leg . | . . . Wheel 2 | . 2 . Hover . | . . . Flight . | . . . Utility 3 | 1 2 . Device . | . . . Storage 3 | 1 2 . Processor . | . . . Hackware . | . . . Protection . | . . . Artifact . | . . . Weapon 15 | 2 8 5 Energy Gun 6 | 1 5 . Energy Cannon 3 | . . 3 Ballistic Gun 1 | 1 . . Ballistic Cannon . | . . . Launcher 4 | . 2 2 Special Weapon . | . . . Impact Weapon . | . . . Slashing Weapon 1 | . 1 . Piercing Weapon . | . . . Special Melee Weapon . | . . . Unidentified Prototypes . | . . . Parts Lost 7 | . 3 4 Power 1 | . . 1 Propulsion 3 | . 1 2 Utility . | . . . Weapon 3 | . 2 1 Highest Loss Streak 4 | . 1 4 To Critical Strikes . | . . . Average Slot Usage (%) 98 | . 98 98 Engine 13 | . 13 13 Treads 27 | . 27 27 Storage 27 | . 27 28 Energy Gun 21 | . 23 11 Energy Cannon 1 | . . 11 Ballistic Gun 2 | . 3 . Launcher 1 | . 1 5 Peak Build Rating 11 | 6 8 11 Average Rating 7 | 5 7 10 On Entrance 4 | . 6 8 Naked Turns . | . . . Heaviest Build 74 | 12 70 74 Greatest Support 40 | 40 40 40 Greatest Overweight (x) 3 | . 3 1 Average Overweight (x) . | . . 1 Largest Inventory Capacity 20 | 8 20 20 Average Capacity 17 | 7 17 20 Most Carried 18 | 3 15 18 Average Carried 11 | 1 10 17 Final Capacity 20 | 8 20 20 Final Carried 16 | 3 15 16 Class Distribution -------------------- 100% | Mutant Dominant Class ---------------- Mutant | -10/Materials Mutant | -10/Mines Resources | -11 -10 -10 ----------- Run | Yrd Mat Min Matter Collected 833 | 281 361 191 Remotely . | . . . Salvage Created 1087 | 146 903 38 Parts 62 | 7 47 8 Haulers Intercepted 2 | . 2 . Recyclers Shooed 1 | . . 1 Parts Field Recycled . | . . . Retrieved Matter . | . . . Parts Self-Destructed . | . . . Prevented . | . . . Kills | -11 -10 -10 ------- Run | Yrd Mat Min Combat Hostiles Destroyed 24 | . 21 3 Guns 17 | . 17 . Cannons 1 | . . 1 AOE 5 | . 3 2 Classes Destroyed 7 | 2 5 . Worker 2 | 2 . . Builder 2 | . 1 1 Hauler 2 | . 2 . Recycler 2 | 1 1 . Watcher 3 | . 3 . Swarmer 12 | . 9 3 Grunt 12 | . 12 . Best Kill Streak 4 | 3 3 4 Combat Bots Only 3 | . 3 3 Max Kills in Single Turn 2 | 1 2 1 Gunslinging 1 | . 1 . Exploded 1 | . 1 1 Melee . | . . . Uniques/NPCs Destroyed . | . . . Combat | -11 -10 -10 -------- Run | Yrd Mat Min Hostile Shots Fired 134 | . 114 20 Missed 33 | . 29 4 Damage Taken 1227 | . 870 357 Core 270 | . 163 107 Absorbed by Shields . | . . . Regen/Repaired (Parts) 60 | . 60 . Core Remaining (%) 100 | 100 . . Volleys Fired 94 | 7 82 5 Largest 2 | 2 2 2 Hottest 93 | 70 90 93 Shots Fired 186 | 14 161 11 Gun 168 | 14 154 . Cannon 6 | . . 6 Launcher 12 | . 7 5 Special . | . . . Kinetic 49 | 7 42 . Thermal 62 | 7 55 . Explosive 12 | . 7 5 Electromagnetic 63 | . 57 6 Robot Hit Streak 11 | 2 11 2 Robot Miss Streak 6 | 3 6 1 Penetration Max . | . . . Secondary Targets 2 | . 2 . Max Gunslinging Chain 1 | . 1 . Shots Hit Robots 93 | 6 85 2 Core Hits 54 | 4 43 7 Critical Kills 1 | . 1 . Critical Parts Destroyed . | . . . Critical Strikes 8 | . 8 . Burn 6 | . 6 . Destroy 1 | . 1 . Corrupt 1 | . 1 . Melee Attacks . | . . . Impact . | . . . Slashing . | . . . Piercing . | . . . Sneak Attacks . | . . . Combat Hostiles . | . . . Follow-up Attacks . | . . . Damage Inflicted 1722 | 88 1390 244 Guns 1180 | 88 1092 . Cannons 45 | . . 45 Explosions 477 | . 298 179 Melee . | . . . Ramming 20 | . . 20 Kinetic 299 | 38 261 . Thermal 422 | 50 372 . Explosive 477 | . 298 179 Electromagnetic 504 | . 459 45 Impact . | . . . Slashing . | . . . Piercing . | . . . Highest Corruption 1 | . 1 1 Average Corruption 1 | . 1 1 Corruption Purged . | . . . Corruption Blocked . | . . . Effects 18 | . 14 4 Message Errors 5 | . 3 2 Matter Fused 4 | . 4 . Heat Flow Errors 1 | . 1 . Energy Discharges 3 | . 2 1 Data Loss (minor) 1 | . 1 . Data Loss (major) 1 | . 1 . Misfires 2 | . 1 1 Alerts 1 | . 1 . Overload Shots . | . . . Overflow Damage 38 | . 36 2 Projectiles . | . . . Explosions 38 | . 36 2 Melee . | . . . Knockbacks . | . . . Impact . | . . . Kinetic . | . . . Secondary . | . . . Self-Inflicted Damage 80 | . 52 28 Shots 4 | . 3 1 Rammed 1 | . . 1 Targets Rammed 1 | . . 1 Kicked . | . . . Crushed . | . . . Highest Temperature 274 | 36 274 132 Average Temperature 68 | 17 73 56 Received Heat Transfer 249 | . 249 . Siege Activations . | . . . Robots Corrupted 1 | . 1 . Combat Hostiles 1 | . 1 . Parts Fried 3 | . 3 . Impact Corruptions . | . . . Robots Melted . | . . . Combat Hostiles . | . . . Parts Melted 3 | . 3 . Heat Transferred 1702 | 148 1554 . Parts Sabotaged . | . . . Parts Stolen . | . . . Parts Stripped . | . . . Power Chain Reactions . | . . . Alert | -11 -10 -10 ------- Run | Yrd Mat Min Peak Influence 348 | 15 348 211 Initial 103 | . 9 103 Average 179 | 1 197 134 Maximum Alert Level 1 | . 1 1 Low Security (%) 61 | 100 57 73 Level 1 38 | . 42 26 Level 2 . | . . . Level 3 . | . . . Level 4 . | . . . Level 5 . | . . . High Security . | . . . Max Security . | . . . Squads Dispatched 5 | . 5 . Investigation 5 | . 5 . Extermination . | . . . Reinforcement . | . . . Assault . | . . . Garrison . | . . . Intercept . | . . . Searches Triggered . | . . . Construction Impeded . | . . . Haulers Reinforced . | . . . Active Scanning Responses . | . . . Cargo Convoy Interrupts . | . . . Stealth | -11 -10 -10 --------- Run | Yrd Mat Min Distress Signals . | . . . Communications Jammed . | . . . Distress Signals . | . . . Times Spotted 28 | . 23 5 Peak Tracking Total 5 | . 5 3 Tactical Retreats . | . . . Traps | -11 -10 -10 ------- Run | Yrd Mat Min Traps Triggered 2 | . 2 . Indirectly . | . . . Trap Hack Attempts . | . . . Triggered . | . . . Disarmed . | . . . Reprogrammed . | . . . Reused . | . . . Traps Extracted . | . . . Installed . | . . . Triggered . | . . . Machines | -11 -10 -10 ---------- Run | Yrd Mat Min Machines Disabled 3 | . 3 . Max in Single Turn 2 | . 2 . Machines Repaired . | . . . Machines Dismantled . | . . . Machines Sabotaged . | . . . Overloaded Fab Kills . | . . . Hacking | -11 -10 -10 --------- Run | Yrd Mat Min Machines Accessed 12 | . 11 1 Terminals 8 | . 8 . Fabricators . | . . . Repair Stations 1 | . 1 . Recycling Units 2 | . 2 . Scanalyzers . | . . . Garrison Access . | . . . Total Hacks 51 | . 50 1 Successful 33 | . 32 1 Failed 18 | . 18 . Catastrophic 1 | . 1 . Database Lockouts . | . . . Manual 27 | . 27 . Terminals 36 | . 36 . Fabricators . | . . . Repair Stations 6 | . 6 . Recycling Units 8 | . 8 . Scanalyzers . | . . . Garrison Access . | . . . Terminal Hacks 16 | . 15 1 Record 5 | . 5 . Robot Analysis 5 | . 5 . Prototype ID Bank 2 | . 2 . Open Door 1 | . . 1 Terminal Index 1 | . 1 . Recycling Unit Index 1 | . 1 . Alert Level 1 | . 1 . Fabricator Hacks . | . . . Repair Station Hacks 4 | . 4 . Scan Component 2 | . 2 . Repair 2 | . 2 . Recycling Unit Hacks 3 | . 3 . Report Inventory 2 | . 2 . Retrieve Components 1 | . 1 . Scanalyzer . | . . . Garrison Access Hacks . | . . . Unauthorized Hacks 10 | . 10 . Terminals 9 | . 9 . Botnet 7 | . 7 . Operators 2 | . 2 . Fabricators . | . . . Repair Stations . | . . . Recycling Units 1 | . 1 . Tunnel 1 | . 1 . Scanalyzers . | . . . Garrison Access . | . . . Data Cores Recovered . | . . . Used . | . . . Hacking Detections 11 | . 11 . Full Trace Events 7 | . 7 . Feedback Events 1 | . 1 . Corruption 1 | . 1 . Feedback Blocked . | . . . Robot Schematics Acquired . | . . . Robots Built . | . . . Authchips . | . . . Time . | . . . Total Robot Build Rating . | . . . Part Schematics Acquired . | . . . Parts Built . | . . . Authchips . | . . . Time . | . . . Total Part Build Rating . | . . . Parts Repaired 2 | . 2 . Time 52 | . 52 . Parts Recycled . | . . . Recycled Matter . | . . . Retrieved Matter . | . . . Retrieved Components 10 | . 10 . Parts Scanalyzed . | . . . Part Schematics Acquired . | . . . Parts Damaged . | . . . Bothacking | -11 -10 -10 ------------ Run | Yrd Mat Min Used RIF Installer . | . . . Robots Hacked . | . . . Non-combat . | . . . Combat . | . . . Robot Hacks Applied . | . . . Relay Couplers Released . | . . . Fabnet Peak Effective % . | . . . Robots Rewired . | . . . Allies Hacked . | . . . Hacks Repelled . | . . . Allies | -11 -10 -10 -------- Run | Yrd Mat Min Total Allies . | . . . Largest Group . | . . . Highest-Rated Group . | . . . Highest-Rated Ally . | . . . Total Orders . | . . . Ally Attacks . | . . . Total Damage . | . . . Kills . | . . . Allies Corrupted . | . . . Allies Melted . | . . . Intel | -11 -10 -10 ------- Run | Yrd Mat Min Robot Analysis Total 4 | . 4 . Derelict Logs Recovered . | . . . Drone Launches . | . . . Drone Recoveries . | . . . Exploration | -11 -10 -10 ------------- Run | Yrd Mat Min Turns Passed 2629 | 114 2128 387 Spaces Moved 1075 | 58 869 148 Core 10 | 10 . . Treads 1008 | 48 812 148 Legs . | . . . Wheels 57 | . 57 . Hover . | . . . Flight . | . . . Fastest Speed 50 | 50 130 240 Average Speed 204 | 141 202 240 Slowest Speed 400 | 160 400 240 Overloaded Moves . | . . . Propulsion Burnouts . | . . . Robots Hopped . | . . . Cave-ins Triggered . | . . . Exploration Rate (%) 48 | 5 98 42 Regions Visited 2 Branch Regions 1 Pre-discovered Areas 1 | . 1 . Known Exits Taken . | . . . Unknown Exits Taken 2 | 1 1 . Scrap Searched 1 | . . 1 Spaces Dug 8 | . 8 . Terrain Destroyed 86 | . 54 32 Melee . | . . . Projectile . | . . . AOE 86 | . 54 32 Terrain Rammed . | . . . Walls Destroyed . | . . . Machines Disabled . | . . . Actions | -11 -10 -10 --------- Run | Yrd Mat Min Total 1314 | 73 1073 168 Wait 85 | . 85 . Move 1073 | 57 868 148 Hop . | . . . Pick Up 20 | 3 12 5 Fast Attach 15 | 6 8 1 Attach 5 | . 3 2 Detach 2 | . 2 . Swap 13 | . 10 3 Drop 6 | . 3 3 Fire 94 | 7 82 5 Melee . | . . . Ram . | . . . Kick . | . . . Crush 1 | . . 1 Escape Stasis . | . . . Rewire . | . . . Trap . | . . . Miscellaneous . | . . . Route ------- -11/Scrapyard -10/Materials (discovered 4 exits: [*Mat x2] / *Min x2) -10/Mines History --------- Turn | Location | Event 13 | -11/Scrapyard | Discovered new exit (range 14) 115 | -11/Scrapyard | Entered Materials 185 | -10/Materials | Discovered new exit (range 4) 307 | -10/Materials | Build established: Mutant 646 | -10/Materials | Discovered new exit (range 10) 826 | -10/Materials | Discovered new exit (range 13) 1090 | -10/Materials | Discovered new exit (range 16) 1388 | -10/Materials | Core integrity fell below 50% 1483 | -10/Materials | Repaired EM Pulse Gun 1511 | -10/Materials | Repaired EM Pulse Gun 2243 | -10/Materials | Entered Mines 2256 | -10/Mines | Met a Derelict who couldn't figure out how to use a Trap Extractor 2332 | -10/Mines | Met a Derelict bent on vengeance 2597 | -10/Mines | Assembled infested the area 2624 | -10/Mines | Core integrity fell below 20% 2630 | -10/Mines | Destroyed by D-53 Grenadier with Mini Grenade Launcher Last Messages --------------- 02558_ U-05 Engineer builds a Wall. 02567_ Acquired 63 matter. 02571_ K-01 Serf collects debris. 02582_ U-05 Engineer lays Concrete. 02584_ K-01 Serf collects debris. 02584_ U-05 Engineer lays Concrete. 02587_ K-01 Serf collects debris. 02597_ ALERT: Infestation in the mines, dispatching Demolisher response squad. 02597_ K-01 Serf collects debris. 02605_ GQGGMIPVTH6Q7K1,AR&TSMDF 02614_ Slammed into T-07 Excavator. 02620_ System corrupted: Energy discharge (-67). 02622_ C-30 ARC bursts open, deploying its payload. 02622_ D-53 Grenadier unfolds itself. 02622_ Lgt. Treads destroyed. 02622_ Grenade Launcher destroyed. 02626_ Ion Engine destroyed. 02626_ D-53 Grenadier destroyed. 02626_ as-59580 destroyed. 02627_ The unstable cave ceiling collapses. Map ----- +----------------------------------------------------+ | | | | | | | | | | | ?????????????????????????????????????????????????? | | ?????????????????????????????????????????????????? | | ?????????????????????????????????????????????????? | | ?????????????????????????????????????????????????? | | ?????????????????????????????????????????????????? | | ?????????????????????????????????????????????????? | | ?????????????????????????????????????????????????? | | ?????????????????????????????????????????????????? | | ???????????????????###???????????????????????????? | | ???????????????????? #??????????????????????????? | | ???????????????????? ??????????????????????????? | | ????????????????????? #?????????????????????????? | | ????????????????????? ###??????????????????????? | | ?????????????????????? #????#?????????????????? | | ?????????????????????? ??? #?????????????????? | | ??????????????????????# ?? #?????????????????? | | ????????????????????### ### #??????????????????? | | ????????????????????# #??????????????????? | | ????????????????????# #??????????????????? | | ???????????????????## #??????????????????? | | ???????????????????# % d@ #??????????????????? | | ???????????????????# #?????????????????? | | ???????????????????# ##?????????????????? | | ???????????????????## ##??????????????????? | | ????????????????????# ## ###???????????????????? | | ????????????????????# ######?????????????????????? | | ????????????????????# #??????????????????????????? | | ??????????????###??## ##????????????#????????????? | | ?????????????## ### ##?????????? #????????????? | | ?????????????# #?????????? #????????????? | | ?????????????# ########### #????????????? | | ?????????????# #????????????? | | ?????????????# [ #?????????????? | | ?????????????## ###### #?????????????? | | ??????????????# # #??## = ##????????????? | | ??????????????# ## #??# #????????????? | | #######???????## ### #??# # ! ###### ??? | | """"""#????????#####??# #??# %= ??? | | !![ * #???????????????# #??# ??? | | #^!^ ##???????????????# #??# ??? | | #! ^*#????????????????# #??## """ ??? | | ## ###???????????????# #???## """ ## ???? | | X #???????????????? ?????## """ ##?????? | | = ###??????????????#????### ##??????? | | #??????????????????## ##???????? | +----------------------------------------------------+ Best States ------------- Heat Dissipation 25 Energy Generation 10 Energy Capacity 250 Matter Stores 300 Matter Capacity 300 Sight Range 16 Terrain Scan Density 10 Evasion (%) 50 Recoil Reduction 2 Item Schematics ----------------- None Robot Schematics ------------------ None Fabricated ------------ Nothing Alien Tech Used ----------------- None Achievements -------------- None Challenges ------------ None Game ------ Seed GammaGuidanceStatue Manual? 0 Play Time 00:18:30 Cumulative 26.9 hours Start 2024.11.09 @ 05:44:55 End 2024.11.09 @ 06:03:48 Sessions 1 Manual Loads 0 Difficulty Rogue Special Mode None Game No. 55 Rogue 55 Adventurer 0 Explorer 0 Win Type - Total 0 Types 0/0/0/0/0/0/0/0/0 Lore% 22 Gallery% 24 Achievement% 28 Wizard Run 0 Options --------- Layout 0 ASCII 0 Keyboard 0 Movement Mouse Keybinds 0 Fullscreen 1 Font 24/Smallcaps Map View 91x25 Zoom Use 74% Tactical HUD 1 Map Filters NONE Filters NONE Steam 1 RUN: 7cbf3866-c272-4748-87cb-04abc21ab72b